[Event "SixDays Budapest March IM 2023"]
[Site "Budapest"]
[Date "2023.03.29"]
[Round "9.3"]
[White "Ulasevich, Sergei"]
[Black "Horvath, David"]
[Result "1/2-1/2"]
[ECO "C00"]
[WhiteElo "2236"]
[BlackElo "2380"]
[Annotator "TA"]
[PlyCount "45"]
[EventDate "2023.03.24"]
[EventType "tourn"]
[EventCountry "HUN"]
[SourceTitle "playchess.com"]
[Source "ChessBase"]
[SourceQuality "1"]
[TimeControl "5400+30"]

{[%evp 9,45,39,100,110,102,113,102,79,149,129,138,128,122,52,192,218,193,227,246,111,146,96,112,31,25,27,22,27,27,18,41,3,3,0,0,0,0,0]} 1. e4 {[%emt 0:00:34]} e6 {[%emt 0:00:37]} 2. d4 {[%emt 0:00:24]} d5 {[%emt 0:00:04]} 3. Bd3 {[%emt 0:00:32]} c5 {[%emt 0:06:45]} 4. exd5 {[%emt 0:00:08]} Qxd5 {[%emt 0:03:14]} 5. Nc3 {[%emt 0:00:02]} Qxd4 {[%emt 0:06:12]} (5... Qd8 $14) 6. Nb5 $1 $16 {[%emt 0:00:14] C01: French: Exchange Variation.} Qd8 {[%emt 0:01:50]} 7. Bf4 {[%emt 0:00:05][%mdl 1024] And now Nc7+ would win. White has strong compensation.} Na6 {[%emt 0:00:20] [#] Prevents Nc7+} 8. Qe2 $1 {[%emt 0:07:30] aiming for 0-0-0. White is better.} Qa5+ {[%emt 0:06:42]} (8... Nf6 $142) 9. c3 {[%emt 0:02:13] White is much more active.} Nf6 {[%emt 0:04:50]} 10. Nf3 {[%emt 0:01:27]} Be7 {[%emt 0:05:40] [#]} 11. Bd6 $146 {[%emt 0:06:36]} (11. a4 $16) ({Predecessor:} 11. Nd6+ Bxd6 12. Bxd6 Nc7 13. Nd2 Ncd5 14. O-O Qd8 15. Bxc5 Nf4 16. Bb5+ Bd7 17. Qc4 Bxb5 18. Qxb5+ {1-0 Exler,V (1954)-Englisch,D (2070) Vienna op-A 15th 2006 (6)}) 11... Bxd6 {[%emt 0:07:38]} (11... Bd7 $14) 12. Nxd6+ $18 {[%emt 0:00:06]} Ke7 {[%emt 0:00:08] [#]} 13. Ne5 $1 {[%emt 0:06:17]} c4 {[%emt 0:08:33][%cal Oc4d3]} 14. Ndxc4 {[%emt 0:07:15]} ({And not} 14. Ndxf7 cxd3 15. Qxd3 Rf8 16. Qd6+ Ke8 $19) (14. Bc2 $18 {has better winning chances.}) 14... Qc7 $16 {[%emt 0:00:19]} 15. O-O {[%emt 0:01:56]} ({Better is} 15. O-O-O) 15... Nc5 {[%emt 0:03:54]} 16. Bc2 {[%emt 0:01:00]} (16. Rfd1 $16) 16... b6 $1 $14 {[%emt 0:06:26]} 17. Qf3 {[%emt 0:15:39]} Ba6 {[%emt 0:05:12]} 18. Rad1 {[%emt 0:06:36] Nc6+ would be deadly.} Bxc4 {[%emt 0:05:16]} 19. Nxc4 {[%emt 0:00:05]} Rad8 {[%emt 0:00:35]} 20. h3 {[%emt 0:05:18]} Rxd1 {[%emt 0:09:45] The position is equal.} 21. Rxd1 {[%emt 0:00:02]} Rd8 {[%emt 0:00:13]} 22. Rxd8 {[%emt 0:00:53]} Kxd8 {[%emt 0:00:53]} 23. Qe3 {[%emt 0:07:06] Weighted Error Value: White=0.28 (precise) /Black=0.17 (very precise)} 1/2-1/2

[Event "SixDays Budapest March IM 2023"]
[Site "Budapest"]
[Date "2023.03.29"]
[Round "9.5"]
[White "Halak, Miklos"]
[Black "Balogh, Peter"]
[Result "1-0"]
[ECO "B06"]
[WhiteElo "2257"]
[BlackElo "2264"]
[Annotator "TA"]
[PlyCount "67"]
[EventDate "2023.03.24"]
[EventType "tourn"]
[EventCountry "HUN"]
[SourceTitle "playchess.com"]
[Source "ChessBase"]
[SourceQuality "1"]
[TimeControl "5400+30"]

{[%evp 9,66,31,37,21,48,52,76,74,71,69,75,70,80,80,112,106,112,109,116,112,115,101,105,89,122,55,117,127,162,162,161,133,190,143,216,218,216,153,356,312,621,435,518,459,603,443,870,767,1288,937,1086,1080,1182,1116,1066,1064,29998,29999,29999]} 1. d4 {[%emt 0:00:32]} g6 {[%emt 0:01:53]} 2. e4 {[%emt 0:01:16]} Bg7 {[%emt 0:00:10]} 3. Nf3 {[%emt 0:00:56]} d6 {[%emt 0:02:10]} 4. Nc3 {[%emt 0:00:54]} a6 {[%emt 0:00:23]} 5. a4 {[%emt 0:00:33]} Bg4 {[%emt 0:00:50]} 6. Be2 {[%emt 0:01:04] B06: Modern Defence.} Nd7 {[%emt 0:00:30]} 7. O-O {[%emt 0:00:49]} c5 {[%emt 0:00:56] [#]} 8. d5 $1 {[%emt 0:00:42] White is better.} Bxf3 {[%emt 0:01:17]} 9. Bxf3 {[%emt 0:00:07]} h5 {[%emt 0:01:14]} 10. Be2 {[%emt 0:05:32]} Qc7 {[%emt 0:02:01] [#]} 11. a5 $146 {[%emt 0:02:39]} ({Predecessor:} 11. Be3 Ngf6 12. f3 Bh6 13. Bxh6 Rxh6 14. Qd2 Rh8 15. f4 O-O-O 16. Rae1 Qa5 17. Bf3 Nb6 18. Qd3 Nfd7 19. e5 c4 20. Qd4 Nc5 21. exd6 exd6 22. Re7 {½-½ Szymanski,M (2362)-Dabek,R (2404) POL-chT2 South 2001}) 11... Nh6 {[%emt 0:04:21]} 12. Be3 {[%emt 0:04:29]} Ng4 {[%emt 0:01:28]} 13. Bxg4 {[%emt 0:00:56]} hxg4 14. Qxg4 {[%emt 0:00:20]} O-O-O {[%emt 0:04:02]} 15. Rfb1 {[%emt 0:03:28] White is more active.} Kb8 {[%emt 0:01:09]} 16. Na4 {[%emt 0:08:19]} Rh5 {[%emt 0:07:23] [#]} 17. Nb6 {[%emt 0:03:56]} Ne5 {[%emt 0:08:43]} ({Better is} 17... Nxb6 $14 18. axb6 Qxb6) 18. Qe2 {[%emt 0:00:50]} Rdh8 {[%emt 0:00:12]} 19. Bf4 {[%emt 0:04:19]} g5 {[%emt 0:06:56]} 20. Bg3 {[%emt 0:00:33] b4 is the strong threat.} Ng6 {[%emt 0:01:48]} (20... e6 $16) 21. Ra3 {[%emt 0:06:08] Black is weak on the light squares} ({White should try} 21. h3 $18) 21... Be5 {[%emt 0:09:25]} (21... Bd4 $16 {keeps fighting.} 22. h3 Nf4) 22. h3 $18 {[%emt 0:01:30]} Nf4 {[%emt 0:18:15]} 23. Qg4 {[%emt 0:02:51]} f5 $2 {[%emt 0:10:14] Loses the game.} (23... f6 $16 {was called for.} 24. Nd7+ Ka7 25. Nxe5 fxe5) 24. exf5 {[%emt 0:00:59]} ({Less strong is} 24. Qxf5 Ne2+ 25. Kh1 Bxg3 $18) 24... c4 $2 {[%emt 0:01:38]} (24... Ka7 25. Ra4 Qb8) 25. Bxf4 {[%emt 0:03:14]} Bxf4 {[%emt 0:01:02]} 26. Qe2 {[%emt 0:01:55]} Rh4 {[%emt 0:00:22]} 27. Rc3 {[%emt 0:00:30]} ({Weaker is} 27. g3 Rxh3 28. Qe4 (28. gxf4 Rh1+ 29. Kg2 Rxb1 $11) 28... Be5 $16) 27... e5 {[%emt 0:02:48]} (27... Be5 $142 28. Rxc4 Rxc4 29. Nxc4 Bf6) 28. fxe6 {[%emt 0:03:12]} g4 {[%emt 0:01:32]} 29. Qxc4 {[%emt 0:00:26]} Bh2+ {[%emt 0:00:44]} 30. Kf1 {[%emt 0:01:10]} Qd8 {[%emt 0:00:52]} 31. e7 {[%emt 0:01:04]} Qxe7 {[%emt 0:00:11] [#]} 32. Qc8+ $3 {[%emt 0:00:40][%mdl 512]} Rxc8 {[%emt 0:00:05]} (32... Ka7 33. Rc7) 33. Rxc8+ {[%emt 0:00:04]} Ka7 {[%emt 0:00:06]} 34. Ra8# {Magnificent play by Halak!   Weighted Error Value: White=0.37/Black=0.80} 1-0